Cogmind - Beta 10 @@@ ROGUE MODE // 2020.09.15 @ 21:23:57 Player: Enzo Result: Self-destructed Performance ------------- Evolutions (3) 1500 Regions Visited (9) 1800 Robots Destroyed (102) 510 Value Destroyed (3023) 3023 Prototype IDs (34) 680 Alien Tech Used (0) 0 Bonus (1790) 1790 TOTAL SCORE: 9303 Bonus ------- High Alert Combat Kills 33 Follower Combat Kills 57 Entered Garrisons 400 Used RIF Installer 1000 Aligned with FarCom 300 Cogmind --------- Core Integrity 618/700 Matter 300/300 Energy 300/300 System Corruption 2% Temperature Cool (12) Movement Flying (29) Location -7/Factory Parts ------- > --- POWER (1) -------- Enhanced Nuclear Core > --- PROPULSION (4) --- Xenon Bombardment Thruster Xenon Bombardment Thruster Xenon Bombardment Thruster Improved Cesium-ion Thruster > --- UTILITY (6) ------ Medium Storage Unit Hacking Suite System Shield Relay Coupler [NC] (27) Relay Coupler [Grunt] (23) Relay Coupler [Duelist] (21) > --- WEAPON (2) ------- Heavy EM Shotgun Remote Datajack > --- INVENTORY (8) ---- Enhanced Nuclear Core Xenon Bombardment Thruster Compact Battery (300) Transmission Jammer System Backup Module Heavy EM Shotgun Advanced Assault Cannon Improved Datajack Peak State ------------ > --- POWER ------------ Light Nuclear Core > --- PROPULSION ------- Potential Leg Potential Leg > --- UTILITY ---------- Coolant Injector Large Storage Unit Hardened Light Armor Plating Medium Reactive Plating Hacking Suite Hacking Suite > --- WEAPON ----------- Gauss Cannon Gauss Cannon > --- INVENTORY -------- Xenon Bombardment Thruster Xenon Bombardment Thruster Xenon Bombardment Thruster Xenon Bombardment Thruster Medium Storage Unit Improved Melee Analysis Suite System Backup Module EM Pulse Cannon Advanced EMP Blaster Katana [Rating: 51] Favorites ----------- Power Light Nuclear Core Engine Ion Engine Power Core Light Nuclear Core Propulsion Potential Leg Leg Potential Leg Wheel Wheel Hover Unit Hover Unit Flight Unit Xenon Bombardment Thruster Utility Hacking Suite Device Improved Heat Sink Storage Large Storage Unit Hackware Hacking Suite Protection Hardened Light Armor Plating Weapon Gauss Cannon Energy Gun Advanced Beam Rifle Energy Cannon Advanced Beam Cannon Ballistic Gun Heavy Assault Rifle Ballistic Cannon Gauss Cannon Launcher Rocket Launcher Special Weapon Remote Datajack Slashing Weapon Katana Special Melee Weapon Improved Datajack Build | -11 -10 -10 -10 -9 -8 -8 -8 -8 -7 ------- Run | Scr Mat Min Exi Min Mat Gar Mat Gar Fac Slots Evolved 6 | . . . . . 4 . . . 2 Power . | . . . . . . . . . . Propulsion 2 | . . . . . . . . . 2 Utility 4 | . . . . . 4 . . . . Weapon . | . . . . . . . . . . Parts Attached 94 | 7 10 9 2 . 25 9 5 10 17 Power 10 | 1 1 1 . . 2 2 1 . 2 Engine 2 | 1 . 1 . . . . . . . Core 8 | . 1 . . . 2 2 1 . 2 Reactor . | . . . . . . . . . . Propulsion 13 | 2 2 2 2 . . . . . 5 Treads . | . . . . . . . . . . Leg 2 | . . . 2 . . . . . . Wheel 5 | 2 1 2 . . . . . . . Hover 1 | . 1 . . . . . . . . Flight 5 | . . . . . . . . . 5 Utility 30 | 2 3 1 . . 12 3 2 4 3 Device 7 | . 1 . . . 4 . 2 . . Storage 6 | 2 2 . . . 1 . . . 1 Processor . | . . . . . . . . . . Hackware 7 | . . . . . 2 . . 3 2 Protection 10 | . . 1 . . 5 3 . 1 . Artifact . | . . . . . . . . . . Weapon 41 | 2 4 5 . . 11 4 2 6 7 Energy Gun 10 | 2 2 2 . . 1 . . . 3 Energy Cannon 1 | . . . . . 1 . . . . Ballistic Gun 7 | . . . . . 5 2 . . . Ballistic Cannon 4 | . . . . . . . 2 2 . Launcher 14 | . 2 3 . . 4 2 . 3 . Special Weapon 1 | . . . . . . . . . 1 Impact Weapon . | . . . . . . . . . . Slashing Weapon 3 | . . . . . . . . . 3 Piercing Weapon . | . . . . . . . . . . Special Melee Weapon 1 | . . . . . . . . 1 . Unidentified Prototypes 7 | . . . . . 3 . . . 4 Parts Lost 12 | . 2 4 . . . . 1 5 . Power 1 | . . 1 . . . . . . . Propulsion 2 | . 1 1 . . . . . . . Utility 3 | . . . . . . . 1 2 . Weapon 6 | . 1 2 . . . . . 3 . Highest Loss Streak 3 | . 2 3 . . . . 1 1 . Average Slot Usage (%) 97 | . 96 98 99 100 98 98 100 87 99 Engine 1 | . 3 4 14 14 . . . . . Core 7 | . 10 9 . . 8 9 9 9 6 Leg 12 | . . . 13 28 18 18 18 18 . Wheel 5 | . 24 28 14 . . . . . . Flight 4 | . . . . . . . . . 30 Device 7 | . 10 11 . . 11 9 9 6 . Storage 10 | . 17 14 14 14 9 9 9 9 7 Hackware 15 | . . . . . 12 18 18 25 37 Protection 10 | . . 2 14 14 19 16 18 2 . Energy Gun 5 | . 19 15 14 14 7 . . . 1 Energy Cannon 1 | . . . . . 2 9 2 . . Ballistic Gun 2 | . . . . . 7 5 2 . . Ballistic Cannon 4 | . . . . . . . 13 9 . Launcher 3 | . 7 12 14 14 . 3 . 5 . Naked Turns . | . . . . . . . . . . Heaviest Build 63 | 15 28 29 29 29 47 57 63 43 26 Greatest Support 60 | 20 20 20 60 60 60 60 60 60 29 Greatest Overweight (x) 2 | . 2 1 1 . . . 1 . . Average Overweight (x) . | . . . . . . . . . . Largest Inventory Capacity 14 | 8 10 10 10 10 14 10 10 10 10 Average Capacity 9 | 7 9 10 10 10 10 10 10 10 8 Most Carried 10 | 5 9 10 9 8 10 10 10 10 9 Average Carried 8 | 1 7 9 6 7 8 9 9 9 6 Final Capacity 10 | 8 10 10 10 10 10 10 10 10 8 Final Carried 10 | 5 9 9 4 7 10 10 10 9 8 Class Distribution -------------------- 38% | Hacker-Mutant 24% | Scavenger-Mutant 16% | Mutant 8% | Bothacker-Mutant 5% | Hacker-Sprinter 3% | Scavenger-Skirmisher Dominant Class ---------------- Mutant | -10/Materials Scavenger-Mutant | -10/Mines Mutant | -10/Exiles Mutant | -9/Mines Hacker-Mutant | -8/Materials Scavenger-Mutant | -8/Garrison Hacker-Mutant | -8/Materials Hacker-Mutant | -8/Garrison Hacker-Sprinter | -7/Factory Resources | -11 -10 -10 -10 -9 -8 -8 -8 -8 -7 ----------- Run | Scr Mat Min Exi Min Mat Gar Mat Gar Fac Matter Collected 2342 | 270 111 253 . 15 350 175 526 314 328 Remotely . | . . . . . . . . . . Salvage Created 3221 | 192 417 180 . 62 579 423 703 387 278 Parts 196 | 12 34 16 . 9 32 25 41 14 13 Haulers Intercepted 9 | . 2 . . . 2 . 3 . 2 Recyclers Shooed 2 | 1 . . . . . . 1 . . Parts Field Recycled . | . . . . . . . . . . Retrieved Matter . | . . . . . . . . . . Parts Self-Destructed . | . . . . . . . . . . Prevented . | . . . . . . . . . . Kills | -11 -10 -10 -10 -9 -8 -8 -8 -8 -7 ------- Run | Scr Mat Min Exi Min Mat Gar Mat Gar Fac Combat Hostiles Destroyed 69 | . 12 7 . . 8 11 15 12 4 Melee 4 | . . . . . . . . . 4 Guns 14 | . 2 2 . . 6 2 2 . . Cannons 23 | . . . . . 1 4 13 5 . AOE 27 | . 10 5 . . 1 5 . 6 . Classes Destroyed 14 | 2 5 2 . . 1 2 1 . 1 Worker 4 | . . 2 . 1 1 . . . . Builder 6 | . 4 . . . 1 . 1 . . Tunneler 8 | 4 1 . . 2 1 . . . . Hauler 9 | . 2 . . . 2 . 3 . 2 Recycler 1 | 1 . . . . . . . . . Operator 2 | . . . . . 1 . 1 . . Watcher 3 | . 1 . . . 1 . 1 . . Swarmer 17 | . 3 4 . . . 4 2 3 1 Grunt 31 | . 9 1 . . 5 5 4 6 1 Brawler 1 | . . . . . . . 1 . . Duelist 2 | . . . . . . 1 1 . . Sentry 14 | . . 2 . . 3 . 6 2 1 Hunter 3 | . . . . . . 1 1 1 . Programmer 1 | . . . . . . . . . 1 Best Kill Streak 13 | 3 13 3 . 2 3 4 3 9 2 Combat Bots Only 9 | . 8 3 . . 3 4 2 9 2 Max Kills in Single Turn 3 | 1 3 2 . 1 1 2 1 2 1 Gunslinging . | . . . . . . . . . . Exploded 3 | . 3 2 . . 1 2 . 2 . Melee 1 | . . . . . . . . . 1 Uniques/NPCs Destroyed . | . . . . . . . . . . Combat | -11 -10 -10 -10 -9 -8 -8 -8 -8 -7 -------- Run | Scr Mat Min Exi Min Mat Gar Mat Gar Fac Damage Taken 3141 | 31 222 207 . 1 284 618 812 674 292 Core 510 | . 40 53 . . 50 43 93 149 82 Absorbed by Shields . | . . . . . . . . . . Core Remaining (%) 67 | 100 . . . 62 . . . 39 . Volleys Fired 265 | 15 45 15 . 4 45 32 72 37 . Largest 2 | 2 2 2 . 1 2 2 2 2 . Hottest 115 | 90 115 115 . 40 101 104 96 96 . Shots Fired 439 | 30 72 19 . 4 71 48 144 51 . Gun 210 | 30 57 14 . 4 60 15 30 . . Cannon 184 | . . . . . 7 27 114 36 . Launcher 45 | . 15 5 . . 4 6 . 15 . Special . | . . . . . . . . . . Kinetic 185 | . . . . . 20 15 114 36 . Thermal 180 | 15 43 14 . 4 47 27 30 . . Explosive 23 | . 15 5 . . 3 . . . . Electromagnetic 51 | 15 14 . . . 1 6 . 15 . Robot Hit Streak 18 | 8 10 5 . 3 14 17 18 10 . Robot Miss Streak 8 | 3 4 1 . 1 3 3 8 4 . Penetration Max 1 | . . . . . . . 1 . . Secondary Targets . | . . . . . . . . . . Shots Hit Robots 274 | 19 36 13 . 3 45 31 77 32 18 Core Hits 152 | 5 40 12 . 2 24 17 28 17 7 Critical Hits 21 | . . . . . 3 5 10 3 . Critical Kills 8 | . . . . . 3 2 2 1 . Critical Parts Destroyed 13 | . . . . . . 3 8 2 . Melee Attacks 29 | . . . . . . . . 4 25 Impact . | . . . . . . . . . . Slashing 25 | . . . . . . . . . 25 Piercing . | . . . . . . . . . . Sneak Attacks 2 | . . . . . . . . . 2 Combat Hostiles . | . . . . . . . . . . Follow-up Attacks . | . . . . . . . . . . Damage Inflicted 7990 | 263 1290 474 . 35 1042 828 1818 1497 743 Guns 2056 | 243 444 138 . 33 818 135 245 . . Cannons 2729 | . . . . . 41 398 1553 737 . Explosions 2440 | 20 846 336 . . 183 295 . 760 . Melee 743 | . . . . . . . . . 743 Ramming 22 | . . . . 2 . . 20 . . Kinetic 2519 | . . . . . 260 135 1387 737 . Thermal 2102 | 117 318 138 . 33 599 398 411 88 . Explosive 1298 | . 846 336 . . 116 . . . . Electromagnetic 1306 | 146 126 . . . 67 295 . 672 . Impact . | . . . . . . . . . . Slashing 743 | . . . . . . . . . 743 Piercing . | . . . . . . . . . . Highest Corruption 2 | . . . . 1 . . . . 2 Average Corruption 1 | . . . . 1 . . . . 2 Corruption Purged . | . . . . . . . . . . Effects 8 | . . . . 3 . . . . 5 Message Errors 2 | . . . . . . . . . 2 Energy Discharges 1 | . . . . . . . . . 1 Data Loss (minor) 5 | . . . . 3 . . . . 2 Overload Shots . | . . . . . . . . . . Overflow Damage 115 | . . . . . 12 . 25 78 . Projectiles 52 | . . . . . . . 25 27 . Explosions 63 | . . . . . 12 . . 51 . Melee . | . . . . . . . . . . Knockbacks 16 | . . . . . . . 6 10 . Impact . | . . . . . . . . . . Kinetic 16 | . . . . . . . 6 10 . Secondary . | . . . . . . . . . . Self-Inflicted Damage 183 | 31 . . . 1 . 17 9 125 . Shots 8 | 1 . . . . . 1 . 6 . Rammed 2 | . . . . 1 . . 1 . . Targets Rammed 3 | . . . . 1 . . 2 . . Kicked 1 | . . . . . . . 1 . . Crushed . | . . . . . . . . . . Highest Temperature 240 | 110 240 102 . 6 86 85 198 197 . Average Temperature 53 | 43 65 44 . 4 23 24 65 50 . Received Heat Transfer 1098 | . 120 81 . . 135 270 243 189 60 Siege Activations . | . . . . . . . . . . Robots Corrupted 1 | . . . . . . . . 1 . Combat Hostiles 1 | . . . . . . . . 1 . Parts Fried 8 | 1 1 . . . . 1 . 5 . Impact Corruptions . | . . . . . . . . . . Robots Melted . | . . . . . . . . . . Combat Hostiles . | . . . . . . . . . . Parts Melted 4 | . 1 1 . . 1 . 1 . . Heat Transferred 4360 | 346 888 371 . 75 1124 666 740 150 . Parts Sabotaged . | . . . . . . . . . . Parts Stolen . | . . . . . . . . . . Parts Stripped . | . . . . . . . . . . Power Chain Reactions 6 | 1 . . . . . 2 . 3 . Missiles Intercepted . | . . . . . . . . . . Alert | -11 -10 -10 -10 -9 -8 -8 -8 -8 -7 ------- Run | Scr Mat Min Exi Min Mat Gar Mat Gar Fac Peak Influence 488 | 25 411 272 . 33 160 429 488 400 463 Initial 208 | . 16 87 . . 6 40 208 67 196 Average 161 | 10 239 123 . 4 56 238 190 282 169 Maximum Alert Level 2 | . 2 1 . . . 2 2 2 2 Low Security (%) 66 | 100 30 88 . 100 100 45 62 20 65 Level 1 27 | . 56 11 . . . 36 28 74 29 Level 2 5 | . 12 . . . . 18 8 4 5 Level 3 . | . . . . . . . . . . Level 4 . | . . . . . . . . . . Level 5 . | . . . . . . . . . . High Security . | . . . . . . . . . . Max Security . | . . . . . . . . . . Squads Dispatched 12 | . 1 . . . 6 . 3 . 2 Investigation . | . . . . . . . . . . Extermination 1 | . . . . . . . . . 1 Reinforcement 5 | . 1 . . . 3 . . . 1 Assault . | . . . . . . . . . . Garrison 6 | . . . . . 3 . 3 . . Intercept . | . . . . . . . . . . Construction Impeded 1 | . . . . . 1 . . . . Haulers Reinforced 1 | . . . . . . . . . 1 Stealth | -11 -10 -10 -10 -9 -8 -8 -8 -8 -7 --------- Run | Scr Mat Min Exi Min Mat Gar Mat Gar Fac Distress Signals 5 | . . . . . 2 . 2 . 1 Communications Jammed . | . . . . . . . . . . Distress Signals . | . . . . . . . . . . Times Spotted 130 | . 19 8 . 1 18 17 34 23 10 Peak Tracking Total 7 | . 7 5 . 1 3 4 5 5 6 Tactical Retreats 19 | . 1 1 . . 1 4 4 6 2 Traps | -11 -10 -10 -10 -9 -8 -8 -8 -8 -7 ------- Run | Scr Mat Min Exi Min Mat Gar Mat Gar Fac Traps Triggered 2 | . . . . . . 1 . 1 . Indirectly . | . . . . . . . . . . Trap Hack Attempts . | . . . . . . . . . . Triggered . | . . . . . . . . . . Disarmed . | . . . . . . . . . . Reprogrammed 6 | . 6 . . . . . . . . Reused 14 | . 2 . . 1 11 . . . . Traps Extracted . | . . . . . . . . . . Installed 4 | . . . . 1 3 . . . . Triggered 15 | . 2 . . 1 12 . . . . Machines | -11 -10 -10 -10 -9 -8 -8 -8 -8 -7 ---------- Run | Scr Mat Min Exi Min Mat Gar Mat Gar Fac Machines Disabled 7 | . . 2 . . . . 3 2 . Max in Single Turn 2 | . . 2 . . . . 2 1 . Garrison Relay 1 | . . . . . . . . 1 . Machines Sabotaged . | . . . . . . . . . . Garrisons Compromised . | . . . . . . . . . . Overloaded Fab Kills . | . . . . . . . . . . Fab Network Shutdowns 1 | . . . . . . . . . 1 Hacking | -11 -10 -10 -10 -9 -8 -8 -8 -8 -7 --------- Run | Scr Mat Min Exi Min Mat Gar Mat Gar Fac Machines Accessed 21 | . 1 . 1 . 5 . 6 . 8 Terminals 14 | . 1 . . . 4 . 4 . 5 Fabricators 2 | . . . . . . . . . 2 Repair Stations 1 | . . . . . . . . . 1 Recycling Units . | . . . . . . . . . . Scanalyzers 1 | . . . . . . . 1 . . Garrison Access 2 | . . . . . 1 . 1 . . Total Hacks 67 | . 3 . 1 . 18 . 19 . 26 Successful 39 | . 3 . 1 . 11 . 13 . 11 Failed 28 | . . . . . 7 . 6 . 15 Catastrophic 2 | . . . . . . . . . 2 Database Lockouts . | . . . . . . . . . . Manual 33 | . 1 . 1 . 14 . 7 . 10 Terminals 56 | . 3 . . . 17 . 16 . 20 Fabricators 4 | . . . . . . . . . 4 Repair Stations 2 | . . . . . . . . . 2 Recycling Units . | . . . . . . . . . . Scanalyzers 2 | . . . . . . . 2 . . Garrison Access 2 | . . . . . 1 . 1 . . Terminal Hacks 22 | . 2 . 1 . 6 . 8 . 5 Part Schematic 1 | . . . . . . . . . 1 Robot Analysis 2 | . . . . . 2 . . . . Prototype ID Bank 2 | . . . . . . . 2 . . Branch Access Points 1 | . . . . . 1 . . . . Terminal Index 2 | . . . . . . . 1 . 1 Repair Station Index 1 | . . . . . . . . . 1 Garrison Index 1 | . . . . . . . . . 1 Alert Level 1 | . . . . . 1 . . . . Unreport Threat 3 | . . . . . . . 3 . . Locate Traps 5 | . 1 . . . 1 . 2 . 1 Reprogram Traps 1 | . 1 . . . . . . . . Zone Layout 1 | . . . . . 1 . . . . EX-Prototype ID Bank 1 | . . . 1 . . . . . . Fabricator Hacks 2 | . . . . . . . . . 2 Load Schematic 1 | . . . . . . . . . 1 Build 1 | . . . . . . . . . 1 Repair Station Hacks 2 | . . . . . . . . . 2 Scan Component 1 | . . . . . . . . . 1 Repair 1 | . . . . . . . . . 1 Recycling Unit Hacks . | . . . . . . . . . . Scanalyzer 2 | . . . . . . . 2 . . Insert Component 1 | . . . . . . . 1 . . Analyze 1 | . . . . . . . 1 . . Garrison Access Hacks 2 | . . . . . 1 . 1 . . Unlock Access 2 | . . . . . 1 . 1 . . Unauthorized Hacks 9 | . 1 . . . 4 . 2 . 2 Terminals 9 | . 1 . . . 4 . 2 . 2 Assimilate 4 | . . . . . 1 . 1 . 2 Botnet 3 | . 1 . . . 2 . . . . Operators 2 | . . . . . 1 . 1 . . Fabricators . | . . . . . . . . . . Repair Stations . | . . . . . . . . . . Recycling Units . | . . . . . . . . . . Scanalyzers . | . . . . . . . . . . Garrison Access . | . . . . . . . . . . Data Cores Recovered . | . . . . . . . . . . Used . | . . . . . . . . . . Hacking Detections 17 | . 1 . . . 3 . 6 . 7 Full Trace Events . | . . . . . . . . . . Feedback Events . | . . . . . . . . . . Feedback Blocked . | . . . . . . . . . . Robot Schematics Acquired . | . . . . . . . . . . Robots Built . | . . . . . . . . . . Matter . | . . . . . . . . . . Time . | . . . . . . . . . . Total Robot Build Rating . | . . . . . . . . . . Part Schematics Acquired 1 | . . . . . . . . . 1 Parts Built . | . . . . . . . . . . Matter 212 | . . . . . . . . . 212 Time 106 | . . . . . . . . . 106 Total Part Build Rating . | . . . . . . . . . . Parts Repaired 1 | . . . . . . . . . 1 Time 38 | . . . . . . . . . 38 Parts Recycled . | . . . . . . . . . . Recycled Matter . | . . . . . . . . . . Retrieved Matter . | . . . . . . . . . . Retrieved Components . | . . . . . . . . . . Parts Scanalyzed 1 | . . . . . . . 1 . . Part Schematics Acquired . | . . . . . . . . . . Parts Damaged . | . . . . . . . . . . Bothacking | -11 -10 -10 -10 -9 -8 -8 -8 -8 -7 ------------ Run | Scr Mat Min Exi Min Mat Gar Mat Gar Fac Used RIF Installer 2 | . . . . . . 1 . 1 . Zone Cloak 1 | . . . . . . . . 1 . Robots Hacked 2 | . . . . . . . . 2 . Non-combat . | . . . . . . . . . . Combat 2 | . . . . . . . . 2 . Robot Hacks Applied 3 | . . . . . . . . 3 . disable_weapons 1 | . . . . . . . . 1 . overwrite_iff 2 | . . . . . . . . 2 . Relay Couplers Released 5 | . . . . . . . . 5 . Machine Destruction 5 | . . . . . . . . 5 . Attached 4 | . . . . . . . . 3 1 Robots Rewired . | . . . . . . . . . . Allies Hacked . | . . . . . . . . . . Hacks Repelled . | . . . . . . . . . . Allies | -11 -10 -10 -10 -9 -8 -8 -8 -8 -7 -------- Run | Scr Mat Min Exi Min Mat Gar Mat Gar Fac Total Allies 11 | . . 2 . 3 1 . 1 2 2 Largest Group 3 | . . 2 1 3 2 . 1 1 1 Highest-Rated Group 45 | . . 45 14 40 24 . 10 15 10 Highest-Rated Ally 31 | . . 31 14 16 16 . 10 15 10 Total Orders . | . . . . . . . . . . Ally Attacks 40 | . . 15 . 18 . . . 7 . Total Damage 508 | . . 169 . 248 . . . 91 . Kills 3 | . . 2 . 1 . . . . . Allies Corrupted . | . . . . . . . . . . Allies Melted . | . . . . . . . . . . Intel | -11 -10 -10 -10 -9 -8 -8 -8 -8 -7 ------- Run | Scr Mat Min Exi Min Mat Gar Mat Gar Fac Robot Analysis Total 2 | . . . . . 2 . . . . Derelict Logs Recovered 3 | . . 2 . 1 . . . . . Drone Launches . | . . . . . . . . . . Drone Recoveries . | . . . . . . . . . . Exploration | -11 -10 -10 -10 -9 -8 -8 -8 -8 -7 ------------- Run | Scr Mat Min Exi Min Mat Gar Mat Gar Fac Turns Passed 6155 | 164 547 506 206 287 1071 482 1420 626 846 Spaces Moved 5028 | 128 446 472 222 277 659 363 744 410 1307 Core 7 | 7 . . . . . . . . . Treads . | . . . . . . . . . . Legs 2563 | . . . 110 277 659 363 744 410 . Wheels 1151 | 121 446 472 112 . . . . . . Hover . | . . . . . . . . . . Flight 1307 | . . . . . . . . . 1307 Fastest Speed 29 | 50 80 80 90 90 90 90 45 90 29 Average Speed 78 | 78 88 89 90 90 90 90 119 90 31 Slowest Speed 130 | 80 100 90 90 90 90 90 130 90 34 Overloaded Moves 20 | . . . . . . . 20 . . Propulsion Burnouts . | . . . . . . . . . . Robots Hopped 6 | . . . . . . . . . 6 Cave-ins Triggered . | . . . . . . . . . . Exploration Rate (%) 51 | 6 76 96 61 60 34 60 40 56 25 Regions Visited 9 Branch Regions 3 Pre-discovered Areas . | . . . . . . . . . . Known Exits Taken 2 | . . . . . 1 . 1 . . Unknown Exits Taken 5 | 1 1 1 1 1 . . . . . Scrap Searched 1 | . . 1 . . . . . . . Spaces Dug 16 | . . . . . 4 9 . . 3 Terrain Destroyed 264 | 5 96 35 . . 17 12 87 9 3 Melee 3 | . . . . . . . . . 3 Projectile 47 | . . . . . . . 47 . . AOE 214 | 5 96 35 . . 17 12 40 9 . Terrain Rammed . | . . . . . . . . . . Walls Destroyed . | . . . . . . . . . . Machines Disabled . | . . . . . . . . . . Actions | -11 -10 -10 -10 -9 -8 -8 -8 -8 -7 --------- Run | Scr Mat Min Exi Min Mat Gar Mat Gar Fac Total 6726 | 158 521 531 230 311 1067 469 1132 611 1696 Wait 1197 | 2 14 33 . 24 295 57 299 143 330 Move 5005 | 127 445 471 221 276 658 361 743 408 1295 Hop 6 | . . . . . . . . . 6 Pick Up 49 | 6 4 2 . 4 16 1 3 3 10 Fast Attach 40 | 7 3 2 2 . 11 3 4 4 4 Attach 14 | . 1 2 . . 2 . . 2 7 Detach 4 | . . . . . 3 . . . 1 Swap 40 | . 6 5 . . 12 6 1 4 6 Drop 63 | 1 3 1 7 1 22 5 8 3 12 Fire 265 | 15 45 15 . 4 45 32 72 37 . Melee 29 | . . . . . . . . 4 25 Ram . | . . . . . . . . . . Kick 3 | . . . . 1 . . 2 . . Crush . | . . . . . . . . . . Escape Stasis 7 | . . . . . . 4 . 3 . Rewire . | . . . . . . . . . . Trap 4 | . . . . 1 3 . . . . Miscellaneous . | . . . . . . . . . . Route ------- -11/Scrapyard -10/Materials (discovered 2 exits: [*Mat] / [*Min]) -10/Mines (discovered 3 exits: [*Mat x2] / *Exi) -10/Exiles -9/Mines -8/Materials -8/Garrison (discovered 2 exits: *Mat x2) -8/Materials -8/Garrison (discovered 2 exits: *Fac x2) -7/Factory (discovered 1 exit: [*Fac]) History --------- Turn | Location | Event 17 | -11/Scrapyard | Discovered new exit (range 16) 165 | -11/Scrapyard | Entered Materials 336 | -10/Materials | Build established: Mutant 365 | -10/Materials | Destroyed 8 combat bots 612 | -10/Materials | Discovered new exit (range 4) 689 | -10/Materials | Discovered new exit (range 7) 712 | -10/Materials | Entered Mines 758 | -10/Mines | Learned Materials security intel 810 | -10/Mines | Build established: Scavenger-Mutant 879 | -10/Mines | Discovered new exit (range 8) 893 | -10/Mines | Received a Rocket Launcher from a helpful Derelict 1029 | -10/Mines | Discovered new exit (range 8) 1083 | -10/Mines | Lost 3 parts (1p1n1w) 1092 | -10/Mines | Learned Materials garrison access intel 1188 | -10/Mines | Deemed a non-threat by the Exiles lab entrance 1188 | -10/Mines | Discovered new exit (range 5) 1218 | -10/Mines | Entered Exiles 1218 | -10/Exiles | Accompanied by 1 ally 1240 | -10/Exiles | Met 8R-AWN 1254 | -10/Exiles | Met EX-HEX 1280 | -10/Exiles | Met EX-BIN 1291 | -10/Exiles | Aligned with FarCom system 1291 | -10/Exiles | Given EX-Vault access code 1315 | -10/Exiles | Opened EX-Vault 1320 | -10/Exiles | Found Potential Leg 1323 | -10/Exiles | Found Potential Leg 1346 | -10/Exiles | Warned to stay clear of 0b10 Research branches 1371 | -10/Exiles | Met EX-DEC 1411 | -10/Exiles | Discovered new exit (range 14) 1424 | -10/Exiles | Left Exiles lab with Potential Leg 1424 | -10/Exiles | Entered Mines 1450 | -9/Mines | Found a hidden stash of uninstalled traps 1601 | -9/Mines | Learned Materials security intel 1601 | -9/Mines | Assisted by bots powering up and referring to "LRC-V3" 1632 | -9/Mines | Build established: Mutant 1680 | -9/Mines | Discovered new exit (range 9) 1711 | -9/Mines | Entered Materials 1711 | -8/Materials | Accompanied by 2 allies 1711 | -8/Materials | Evolved 4 slots: Utility x4 1713 | -8/Materials | Loaded intel: 1 garrison access location 1782 | -8/Materials | Garrison activated, responded to threat 2411 | -8/Materials | Build established: Hacker-Mutant 2781 | -8/Materials | Identified exit to Garrison 2782 | -8/Materials | Entered Garrison 2882 | -8/Garrison | Triggered checkpoint 2885 | -8/Garrison | Triggered checkpoint 3087 | -8/Garrison | Discovered new exit (range 13) 3215 | -8/Garrison | Discovered new exit (range 8) 3226 | -8/Garrison | Installed Relay Interface Framework 3264 | -8/Garrison | Entered Materials 3396 | -8/Materials | Build established: Scavenger-Mutant 3739 | -8/Materials | Build established: Hacker-Mutant 4425 | -8/Materials | Garrison activated, responded to threat 4563 | -8/Materials | Garrison activated, responded to threat 4684 | -8/Materials | Identified exit to Garrison 4684 | -8/Materials | Entered Garrison 4784 | -8/Garrison | Triggered checkpoint 4784 | -8/Garrison | Triggered checkpoint 4790 | -8/Garrison | Triggered checkpoint 4833 | -8/Garrison | Core integrity fell below 50% 4856 | -8/Garrison | Destroyed 9 combat bots 4928 | -8/Garrison | Triggered checkpoint 5135 | -8/Garrison | Garrison Relay disabled 5185 | -8/Garrison | Discovered new exit (range 15) 5286 | -8/Garrison | Discovered new exit (range 15) 5306 | -8/Garrison | Expanded RIF knowledge: Zone Cloak 5310 | -8/Garrison | Entered Factory 5310 | -7/Factory | Evolved 2 slots: Propulsion x2 5465 | -7/Factory | Repaired Nuclear Core 5796 | -7/Factory | Discovered new exit (range 15) 6111 | -7/Factory | Local fabrication network quarantined 6128 | -7/Factory | Build established: Hacker-Sprinter 6156 | -7/Factory | Self-destructed Last Messages --------------- Matter: 212 Initiate build sequence. >>Build Building Nuclear Pulse Array... ETC: 106 06065_ Technician 4b reveals location of hidden door. 06078_ ,ZSI,J|#2SK5EB:RPNP3RQT/QD,I//FF5 06122_ Acquired 50 matter. 06126_ K-01 Serf cleans the Matter Pump. 06156_ Fusion Modulator explodes. 06156_ Fabricator disabled. Map ----- +----------------------------------------------------+ | #?######### #???# #??????????? | | #?# # """ #???# * ""#???######?? | | #?# #??""" #???# % T"#???# #?? | | #?# ! # """ #???# ""#???# ! #?? | | #?# # #???# [ ##### #?? | | #?# """" # """ ########+### =# #?? | | ### """" #??""" +[ ### | | # """" #??""" #####+########+### ![#! # | | # """" !# # # #?## ## # | | + """" # """ # ! #!! #### ## # | | # """" #??""" ?# +!! + ## # | | # #???"" ?# """ """ #!! # ####### | | ###########??? ??# """ """ # # #?????# | | ??????????????"" ???# """ """ ###### w####### | | ???????????????"? ??# #?#### | | ???????????????? ?+ ### | | ????????????????? ?##;;;;;;;;;## | | ?????????????????? %?# ; # """ | | ?????????????????### ##;; # "T" """" """" | | ?????????????????# ;; # """" """" | | ????????????????## k ;; [ # """" """" | | ????????????????? Y ; + | | ??????????????????? ;; # | | ????????????????????? ;; # ## ####### | | ???????????????????????;; [ ####### ???### | | ????????????????????????#@ "" #?????# #?# | | ????????????????????????##########?????#### ##?# | | ??????????????????????????????????????????? ???# | | ????????????????????????????????????????????#??# | | ???????????????????????????????????????????????# | | ???????????????????????????????????????????????# | | ???????????????????????????????????????????????# | | ???????????????????????????????????????????????# | | ???????????????????????????????????????????????# " | | ???????????????????????????????????????????????# " | | ???????????????????????????????????????????????# " | | ???????????????????????????????????????????????# | | ???????????????????????????????????????????????### | | ?????????????????????????????????????????????????? | | | | | | | | | | | | | | | | | | | | | | | +----------------------------------------------------+ Best States ------------- Heat Dissipation 55 Coolant Potential 65 Energy Generation 17 Energy Capacity 300 Matter Stores 300 Matter Capacity 300 Sight Range 16 Terrain Scan Range 16 Terrain Scan Density 10 Armor Coverage 525 Resistance: KI 30 Core Shielding 20 Evasion (%) 64 Offensive Hacking 20 Defensive Hacking 10 Relay Coupler Types 71 Relay Coupler Value 3 Item Schematics ----------------- Nuclear Pulse Array | -7/Factory | Hacked Robot Schematics ------------------ None Fabricated ------------ Nothing Alien Tech Used ----------------- None Achievements -------------- None Challenges ------------ None Game ------ Seed TachyonHeatExoskeleton Manual? 0 Play Time 01:07:25 Cumulative 38.2 hours Start 2020.09.14 @ 18:08:37 End 2020.09.15 @ 21:23:57 Sessions 4 Manual Loads 0 Difficulty Rogue Special Mode None Game No. 92 Rogue 92 Adventurer 0 Explorer 0 Win Type - Total 0 Types 0/0/0/0/0/0/0/0/0 Lore% 39 Gallery% 39 Achievement% 33 Wizard Run 0 Options --------- ASCII 0 Keyboard 0 Movement Numpad Keybinds 0 Fullscreen 2 Font 24/Smallcaps Map View 76x50 Tactical HUD 1 Map Filters NONE Filters NONE Steam 1 RUN: 0822f9d5-7060-4647-83a1-4de1c0e02001